{"text_format":"1","workbook":"xlsx","n_sheets":3,"sheets":["Informācijas panelis","Aprīkojuma saraksts","Rakurstabulas dati"],"not_rendered":{"charts":0,"images":0,"macros":1,"external_links":0,"defined_names":13,"comments":0,"pivot_tables":1},"unopened":[],"bounds":{"document_bytes":16777216,"sheet_cells":100000,"rows_first":2000,"rows_last":500,"rows_between":2000,"halvings":0,"cell_chars":16384,"cell_head_chars":4096},"cells_cut":0,"cells_raw":0,"read":"whole","date_system":"1900"}

{"sheet":"Informācijas panelis","index":0,"n_rows":20,"n_cols":6,"rows_kept":20,"cut":false,"hidden":false,"merged":[]}
[null,"Informācijas panelis"]
[]
[]
[null,null,null,null,null,"Kopējais skaits"]
[null,null,null,null,null,{"$f":"GETPIVOTDATA(\"Skaits\",'Rakurstabulas dati'!$B$11)","v":3}]
[]
[null,null,null,null,null,"Kopējās mēneša izmaksas"]
[null,null,null,null,null,{"$f":"GETPIVOTDATA(\"Kopējās ikmēneša izmaksas \",'Rakurstabulas dati'!$B$11)","v":1765.5943035068672}]
[]
[null,null,null,null,null,"Ekspluatācijas izmaksas"]
[null,null,null,null,null,{"$f":"GETPIVOTDATA(\"Ekspluatācijas izmaksas mēnesī \",'Rakurstabulas dati'!$B$11)","v":605}]
[]
[null,null,null,null,null,"Mēneša nolietojums"]
[null,null,null,null,null,{"$f":"GETPIVOTDATA(\"Mēneša nolietojums \",'Rakurstabulas dati'!$B$11)","v":659.72222222222217}]
[]
[null,null,null,null,null,"Maksājuma summa"]
[null,null,null,null,null,{"$f":"GETPIVOTDATA(\"Ikmēneša maksājums \",'Rakurstabulas dati'!$B$11)","v":1160.5943035068672}]
[]
[null,null,null,null,null,"Pašreizējā vērtība"]
[null,null,null,null,null,{"$f":"GETPIVOTDATA(\"Pašreizējā vērtība \",'Rakurstabulas dati'!$B$11)","v":26514.383561643837}]

{"sheet":"Aprīkojuma saraksts","index":1,"n_rows":9,"n_cols":20,"rows_kept":9,"cut":false,"hidden":false,"merged":[]}
[null,"Aprīkojuma saraksts"]
[]
[null,null,null,"Iezīmēt, kad ikmēneša maksājumi ir atlikuši mazāk nekā: ",20]
[]
[null,"Aktīva vai sērijas numurs","Vienuma apraksts\n(ražotājs un modelis)","Atrašanās vieta","Nosacījums","Piegādātājs","Atlikušie tehniskās apkopes gadi ","Sākotnējā vērtība","Pirmā iemaksa","Iegādes vai nomas datums","Aizņēmuma termiņš\n(gadi)","Aizņēmuma likme","Ekspluatācijas izmaksas mēnesī","Paredzamā vērtība līguma darbības beigās","Atlikušie mēneša maksājumi","Ikmēneša maksājums","Kopējās ikmēneša izmaksas","Gada nolietojums\n(vienmērīgs)","Mēneša nolietojums\n(vienmērīgs)","Pašreizējā vērtība"]
[null,123,"1. ražotāja modelis","Galvenā filiāle","Labi","Vietējie",5,30000,5000,"2011-01-15",4,0.1,200,20000,{"$f":"IFERROR(SUMPRODUCT(--(DAY(ROW(OFFSET($A$1,,,DATE(YEAR(Aprīkojums[[#This Row],[Iegādes vai nomas datums]])+Aprīkojums[[#This Row],[Aizņēmuma termiņš\n(gadi)]],MONTH(Aprīkojums[[#This Row],[Iegādes vai nomas datums]])-1,DAY(Aprīkojums[[#This Row],[Iegādes vai nomas datums]]))-TODAY()))+DATE(YEAR(Aprīkojums[[#This Row],[Iegādes vai nomas datums]])+Aprīkojums[[#This Row],[Aizņēmuma termiņš\n(gadi)]],MONTH(Aprīkojums[[#This Row],[Iegādes vai nomas datums]]),DAY(Aprīkojums[[#This Row],[Iegādes vai nomas datums]]))-1)=DAY(Aprīkojums[[#This Row],[Iegādes vai nomas datums]]))),0)","v":9},{"$f":"IFERROR(-(Aprīkojums[Sākotnējā vērtība]>0)*(Aprīkojums[Sākotnējā vērtība]<>Aprīkojums[Pirmā iemaksa])*PMT(Aprīkojums[Aizņēmuma likme]/Mēneši_gadā,Aprīkojums[Aizņēmuma termiņš\n(gadi)]*Mēneši_gadā,Aprīkojums[Sākotnējā vērtība]-Aprīkojums[Pirmā iemaksa]),0)","v":634.06458586867973},{"$f":"Aprīkojums[[#This Row],[Ikmēneša maksājums]]+Aprīkojums[Ekspluatācijas izmaksas mēnesī]","v":834.06458586867973},{"$f":"IFERROR((Aprīkojums[Sākotnējā vērtība]>0)*SLN(Aprīkojums[Sākotnējā vērtība],Aprīkojums[Paredzamā vērtība līguma darbības beigās],Aprīkojums[Aizņēmuma termiņš\n(gadi)]),0)","v":2500},{"$f":"IFERROR(Aprīkojums[Gada nolietojums\n(vienmērīgs)]/Mēneši_gadā,0)","v":208.33333333333334},{"$f":"IFERROR(Aprīkojums[Sākotnējā vērtība]-(Aprīkojums[Gada nolietojums\n(vienmērīgs)]*((TODAY()-Aprīkojums[Iegādes vai nomas datums])/Dienas_gadā)),0)","v":21883.561643835616}]
[null,234,"2. ražotāja modelis","Galvenā filiāle","Labi","Vietējie",4,12500,1500,"2011-03-10",3,7.7499999999999999E-2,120,3000,{"$f":"IFERROR(SUMPRODUCT(--(DAY(ROW(OFFSET($A$1,,,DATE(YEAR(Aprīkojums[[#This Row],[Iegādes vai nomas datums]])+Aprīkojums[[#This Row],[Aizņēmuma termiņš\n(gadi)]],MONTH(Aprīkojums[[#This Row],[Iegādes vai nomas datums]])-1,DAY(Aprīkojums[[#This Row],[Iegādes vai nomas datums]]))-TODAY()))+DATE(YEAR(Aprīkojums[[#This Row],[Iegādes vai nomas datums]])+Aprīkojums[[#This Row],[Aizņēmuma termiņš\n(gadi)]],MONTH(Aprīkojums[[#This Row],[Iegādes vai nomas datums]]),DAY(Aprīkojums[[#This Row],[Iegādes vai nomas datums]]))-1)=DAY(Aprīkojums[[#This Row],[Iegādes vai nomas datums]]))),0)","v":0},{"$f":"IFERROR(-(Aprīkojums[Sākotnējā vērtība]>0)*(Aprīkojums[Sākotnējā vērtība]<>Aprīkojums[Pirmā iemaksa])*PMT(Aprīkojums[Aizņēmuma likme]/Mēneši_gadā,Aprīkojums[Aizņēmuma termiņš\n(gadi)]*Mēneši_gadā,Aprīkojums[Sākotnējā vērtība]-Aprīkojums[Pirmā iemaksa]),0)","v":343.43280007691891},{"$f":"Aprīkojums[[#This Row],[Ikmēneša maksājums]]+Aprīkojums[Ekspluatācijas izmaksas mēnesī]","v":463.43280007691891},{"$f":"IFERROR((Aprīkojums[Sākotnējā vērtība]>0)*SLN(Aprīkojums[Sākotnējā vērtība],Aprīkojums[Paredzamā vērtība līguma darbības beigās],Aprīkojums[Aizņēmuma termiņš\n(gadi)]),0)","v":3166.6666666666665},{"$f":"IFERROR(Aprīkojums[Gada nolietojums\n(vienmērīgs)]/Mēneši_gadā,0)","v":263.88888888888886},{"$f":"IFERROR(Aprīkojums[Sākotnējā vērtība]-(Aprīkojums[Gada nolietojums\n(vienmērīgs)]*((TODAY()-Aprīkojums[Iegādes vai nomas datums])/Dienas_gadā)),0)","v":2687.6712328767135}]
[null,345,"2. ražotāja modelis","1. filiāle","Pieņemami","Citi",1,10000,2500,"2010-09-15",4,0.08,285,1000,{"$f":"IFERROR(SUMPRODUCT(--(DAY(ROW(OFFSET($A$1,,,DATE(YEAR(Aprīkojums[[#This Row],[Iegādes vai nomas datums]])+Aprīkojums[[#This Row],[Aizņēmuma termiņš\n(gadi)]],MONTH(Aprīkojums[[#This Row],[Iegādes vai nomas datums]])-1,DAY(Aprīkojums[[#This Row],[Iegādes vai nomas datums]]))-TODAY()))+DATE(YEAR(Aprīkojums[[#This Row],[Iegādes vai nomas datums]])+Aprīkojums[[#This Row],[Aizņēmuma termiņš\n(gadi)]],MONTH(Aprīkojums[[#This Row],[Iegādes vai nomas datums]]),DAY(Aprīkojums[[#This Row],[Iegādes vai nomas datums]]))-1)=DAY(Aprīkojums[[#This Row],[Iegādes vai nomas datums]]))),0)","v":5},{"$f":"IFERROR(-(Aprīkojums[Sākotnējā vērtība]>0)*(Aprīkojums[Sākotnējā vērtība]<>Aprīkojums[Pirmā iemaksa])*PMT(Aprīkojums[Aizņēmuma likme]/Mēneši_gadā,Aprīkojums[Aizņēmuma termiņš\n(gadi)]*Mēneši_gadā,Aprīkojums[Sākotnējā vērtība]-Aprīkojums[Pirmā iemaksa]),0)","v":183.09691756126861},{"$f":"Aprīkojums[[#This Row],[Ikmēneša maksājums]]+Aprīkojums[Ekspluatācijas izmaksas mēnesī]","v":468.09691756126858},{"$f":"IFERROR((Aprīkojums[Sākotnējā vērtība]>0)*SLN(Aprīkojums[Sākotnējā vērtība],Aprīkojums[Paredzamā vērtība līguma darbības beigās],Aprīkojums[Aizņēmuma termiņš\n(gadi)]),0)","v":2250},{"$f":"IFERROR(Aprīkojums[Gada nolietojums\n(vienmērīgs)]/Mēneši_gadā,0)","v":187.5},{"$f":"IFERROR(Aprīkojums[Sākotnējā vērtība]-(Aprīkojums[Gada nolietojums\n(vienmērīgs)]*((TODAY()-Aprīkojums[Iegādes vai nomas datums])/Dienas_gadā)),0)","v":1943.1506849315074}]
[null,"Kopā",null,null,null,null,{"$f":"SUBTOTAL(101,Aprīkojums[[Atlikušie tehniskās apkopes gadi ]])","v":3.3333333333333335},{"$f":"SUBTOTAL(109,Aprīkojums[Sākotnējā vērtība])","v":52500},{"$f":"SUBTOTAL(109,Aprīkojums[Pirmā iemaksa])","v":9000},null,{"$f":"SUBTOTAL(101,Aprīkojums[Aizņēmuma termiņš\n(gadi)])","v":3.6666666666666665},{"$f":"SUBTOTAL(101,Aprīkojums[Aizņēmuma likme])","v":8.5833333333333331E-2},{"$f":"SUBTOTAL(109,Aprīkojums[Ekspluatācijas izmaksas mēnesī])","v":605},{"$f":"SUBTOTAL(109,Aprīkojums[Paredzamā vērtība līguma darbības beigās])","v":24000},{"$f":"SUBTOTAL(101,Aprīkojums[Atlikušie mēneša maksājumi])","v":4.666666666666667},{"$f":"SUBTOTAL(109,Aprīkojums[Ikmēneša maksājums])","v":1160.5943035068672},{"$f":"SUBTOTAL(109,Aprīkojums[Kopējās ikmēneša izmaksas])","v":1765.5943035068672},{"$f":"SUBTOTAL(101,Aprīkojums[Gada nolietojums\n(vienmērīgs)])","v":2638.8888888888887},{"$f":"SUBTOTAL(101,Aprīkojums[Mēneša nolietojums\n(vienmērīgs)])","v":219.90740740740739},{"$f":"SUBTOTAL(109,Aprīkojums[Pašreizējā vērtība])","v":26514.383561643837}]

{"sheet":"Rakurstabulas dati","index":2,"n_rows":15,"n_cols":8,"rows_kept":15,"cut":false,"hidden":true,"merged":[]}
[null,"Rakurstabulas dati"]
[null,"Šī lapa jāsaglabā paslēpta. Mainīga rakurstabulas struktūra šajā lapā var izraisīt kļūdas informācijas paneļa datu griezumos."]
[]
[null,"Vienuma apraksts\n(ražotājs un modelis)","(Visi)"]
[null,"Atrašanās vieta","(Visi)"]
[null,"Nosacījums","(Visi)"]
[null,"Piegādātājs","(Visi)"]
[null,"Atlikušie tehniskās apkopes gadi ","(Visi)"]
[null,"Aizņēmuma termiņš\n(gadi)","(Visi)"]
[]
[null,"Rindu etiķetes","Skaits","Ekspluatācijas izmaksas mēnesī ","Ikmēneša maksājums ","Kopējās ikmēneša izmaksas ","Mēneša nolietojums ","Pašreizējā vērtība "]
[null,123,1,200,634.06458586867973,834.06458586867973,208.33333333333334,21883.561643835616]
[null,234,1,120,343.43280007691891,463.43280007691891,263.88888888888886,2687.6712328767135]
[null,345,1,285,183.09691756126861,468.09691756126858,187.5,1943.1506849315074]
[null,"Gala summa",3,605,1160.5943035068672,1765.5943035068672,659.72222222222217,26514.383561643837]